[Event "*** MasterClass Titled Tuesday Blitz"]
[Site "Chess.com"]
[Date "2017.10.03"]
[Round "6"]
[White "ruvat"]
[Black "bilelou"]
[Result "0-1"]
[WhiteElo "2301"]
[BlackElo "2417"]
[TimeControl "180+2"]
[EndTime "14:23:31 PDT"]
[Termination "bilelou won by resignation"]

1. d4 {[%clk 0:03:01.9]} 1... e6 {[%clk 0:02:54.9]} 2. c4 {[%clk 0:03:02]} 2...
d5 {[%clk 0:02:55]} 3. Nf3 {[%clk 0:03:02.6]} 3... Nf6 {[%clk 0:02:55.8]} 4. g3
{[%clk 0:03:03.5]} 4... Bb4+ {[%clk 0:02:42.8]} 5. Bd2 {[%clk 0:03:03.3]} 5...
Be7 {[%clk 0:02:44.2]} 6. Bg2 {[%clk 0:03:03.8]} 6... O-O {[%clk 0:02:44.8]} 7.
O-O {[%clk 0:03:04.6]} 7... Nbd7 {[%clk 0:02:40.4]} 8. Qc2 {[%clk 0:03:04.2]}
8... Ne4 {[%clk 0:02:40.4]} 9. Rd1 {[%clk 0:03:02]} 9... c6 {[%clk 0:02:35.5]}
10. b3 {[%clk 0:02:56.5]} 10... b5 {[%clk 0:02:32.1]} 11. Be1 {[%clk 0:02:44.5]}
11... bxc4 {[%clk 0:02:28]} 12. bxc4 {[%clk 0:02:44.5]} 12... Ba6 {[%clk
0:02:06.2]} 13. Nbd2 {[%clk 0:02:38.5]} 13... Nxd2 {[%clk 0:02:04.2]} 14. Nxd2
{[%clk 0:02:38.4]} 14... Nb6 {[%clk 0:02:00.6]} 15. c5 {[%clk 0:02:34.1]} 15...
Nc4 {[%clk 0:01:54.4]} 16. Nxc4 {[%clk 0:02:31.6]} 16... Bxc4 {[%clk 0:01:56.3]}
17. e4 {[%clk 0:02:18.3]} 17... Qc8 {[%clk 0:01:39.1]} 18. Bc3 {[%clk
0:02:09.2]} 18... Qa6 {[%clk 0:01:38]} 19. Rd2 {[%clk 0:01:59.7]} 19... Rab8
{[%clk 0:01:38.4]} 20. h4 {[%clk 0:01:52.2]} 20... Rb7 {[%clk 0:01:31.3]} 21.
Re1 {[%clk 0:01:47.3]} 21... Rfb8 {[%clk 0:01:26.1]} 22. h5 {[%clk 0:01:42.5]}
22... h6 {[%clk 0:01:21.9]} 23. Kh2 {[%clk 0:01:42.2]} 23... Bd8 {[%clk
0:01:12.5]} 24. exd5 {[%clk 0:01:30.4]} 24... cxd5 {[%clk 0:01:11]} 25. f4
{[%clk 0:01:12.2]} 25... Ba5 {[%clk 0:00:57.5]} 26. f5 {[%clk 0:00:35.1]} 26...
Bxc3 {[%clk 0:00:40.9]} 27. Qxc3 {[%clk 0:00:37]} 27... exf5 {[%clk 0:00:42]}
28. Re5 {[%clk 0:00:32.4]} 28... Qf6 {[%clk 0:00:39.4]} 29. Bxd5 {[%clk
0:00:29]} 29... Bxd5 {[%clk 0:00:35.2]} 30. Rxd5 {[%clk 0:00:30.5]} 30... Qg5
{[%clk 0:00:36.5]} 31. c6 {[%clk 0:00:24.1]} 31... Qxh5+ {[%clk 0:00:28.5]} 32.
Kg2 {[%clk 0:00:24.7]} 32... Rb1 {[%clk 0:00:30.3]} 33. Kf2 {[%clk 0:00:19.6]}
33... Re8 {[%clk 0:00:27.3]} 34. Re5 {[%clk 0:00:18.6]} 34... Qh2+ {[%clk
0:00:25.6]} 35. Ke3 {[%clk 0:00:14]} 35... Qxg3+ {[%clk 0:00:23.9]} 0-1

[Event "*** MasterClass Titled Tuesday Blitz"]
[Site "Chess.com"]
[Date "2017.10.03"]
[Round "6"]
[White "SantoBlue"]
[Black "Bengalas"]
[Result "1-0"]
[WhiteElo "2562"]
[BlackElo "2527"]
[TimeControl "180+2"]
[EndTime "14:23:32 PDT"]
[Termination "SantoBlue won by resignation"]

1. Nf3 {[%clk 0:02:41.6]} 1... c5 {[%clk 0:02:58.3]} 2. g3 {[%clk 0:02:43]} 2...
Nc6 {[%clk 0:02:58.3]} 3. c4 {[%clk 0:02:40.2]} 3... Nf6 {[%clk 0:02:55]} 4. Nc3
{[%clk 0:02:38.2]} 4... g6 {[%clk 0:02:55.4]} 5. Bg2 {[%clk 0:02:36.5]} 5... Bg7
{[%clk 0:02:55.9]} 6. O-O {[%clk 0:02:36.7]} 6... O-O {[%clk 0:02:56.5]} 7. d3
{[%clk 0:02:35.5]} 7... d6 {[%clk 0:02:38.4]} 8. Bd2 {[%clk 0:02:36]} 8... a6
{[%clk 0:02:38.4]} 9. a3 {[%clk 0:02:37.2]} 9... Rb8 {[%clk 0:02:38.4]} 10. b4
{[%clk 0:02:36.2]} 10... cxb4 {[%clk 0:02:35.3]} 11. axb4 {[%clk 0:02:38.1]}
11... Nxb4 {[%clk 0:02:34]} 12. Nd4 {[%clk 0:02:20]} 12... Bd7 {[%clk
0:02:14.1]} 13. Qb3 {[%clk 0:01:44.5]} 13... Nc6 {[%clk 0:02:13.6]} 14. Nxc6
{[%clk 0:01:41.5]} 14... Bxc6 {[%clk 0:02:02.3]} 15. Bxc6 {[%clk 0:01:36.9]}
15... bxc6 {[%clk 0:02:03.3]} 16. Qa4 {[%clk 0:01:38.3]} 16... Qd7 {[%clk
0:01:29.7]} 17. Rfb1 {[%clk 0:01:34.8]} 17... Rxb1+ {[%clk 0:00:57.5]} 18. Rxb1
{[%clk 0:01:36.7]} 18... Ra8 {[%clk 0:00:57.5]} 19. Rb6 {[%clk 0:01:29.3]} 19...
Rc8 {[%clk 0:00:49.9]} 20. Qxa6 {[%clk 0:01:22.4]} 20... h5 {[%clk 0:00:45.7]}
21. Kg2 {[%clk 0:01:12.6]} 21... Ng4 {[%clk 0:00:38.4]} 22. h3 {[%clk
0:01:08.8]} 22... Nh6 {[%clk 0:00:32.5]} 23. Rb7 {[%clk 0:01:02.7]} 23... Rc7
{[%clk 0:00:32.9]} 24. Qa8+ {[%clk 0:01:01.5]} 24... Kh7 {[%clk 0:00:32.9]} 25.
Rxc7 {[%clk 0:01:00.4]} 25... Qxc7 {[%clk 0:00:33.9]} 26. Qe8 {[%clk 0:00:58.7]}
26... f6 {[%clk 0:00:21.3]} 27. Bxh6 {[%clk 0:00:46.1]} 27... Bxh6 {[%clk
0:00:17.9]} 28. Qf7+ {[%clk 0:00:46.3]} 28... Bg7 {[%clk 0:00:17.9]} 29. h4
{[%clk 0:00:41.2]} 29... Qd8 {[%clk 0:00:17.2]} 30. Qe6 {[%clk 0:00:41.2]} 30...
Bf8 {[%clk 0:00:15.8]} 31. Ne4 {[%clk 0:00:41.5]} 31... Kg7 {[%clk 0:00:16.4]}
32. f3 {[%clk 0:00:41.3]} 32... Qc7 {[%clk 0:00:15]} 33. g4 {[%clk 0:00:42]}
33... hxg4 {[%clk 0:00:15.1]} 34. fxg4 {[%clk 0:00:43.9]} 34... Qb8 {[%clk
0:00:13.9]} 35. h5 {[%clk 0:00:45.1]} 35... gxh5 {[%clk 0:00:13.5]} 36. Ng3
{[%clk 0:00:46.7]} 36... Qe8 {[%clk 0:00:13.9]} 37. Nxh5+ {[%clk 0:00:47.7]}
37... Kh6 {[%clk 0:00:13.5]} 38. Qg8 {[%clk 0:00:48.9]} 38... Qg6 {[%clk
0:00:12.6]} 39. Qxf8+ {[%clk 0:00:46.5]} 39... Kg5 {[%clk 0:00:12.4]} 40. Qg7
{[%clk 0:00:47.2]} 40... Qxg7 {[%clk 0:00:11.9]} 41. Nxg7 {[%clk 0:00:49.1]}
41... Kxg4 {[%clk 0:00:13.2]} 42. Ne6 {[%clk 0:00:51]} 42... Kf5 {[%clk
0:00:12.8]} 43. Nd4+ {[%clk 0:00:52.2]} 1-0

[Event "*** MasterClass Titled Tuesday Blitz"]
[Site "Chess.com"]
[Date "2017.10.03"]
[Round "6"]
[White "AndrewMcStone"]
[Black "guilhermedeola"]
[Result "0-1"]
[WhiteElo "2066"]
[BlackElo "2074"]
[TimeControl "180+2"]
[EndTime "14:23:41 PDT"]
[Termination "guilhermedeola won on time"]

1. d4 {[%clk 0:03:01.9]} 1... g6 {[%clk 0:02:59.1]} 2. c4 {[%clk 0:03:02]} 2...
Bg7 {[%clk 0:02:59.9]} 3. Nc3 {[%clk 0:03:03.3]} 3... e6 {[%clk 0:02:59.6]} 4.
e4 {[%clk 0:03:03.8]} 4... Ne7 {[%clk 0:02:58.9]} 5. Nge2 {[%clk 0:03:00.1]}
5... d5 {[%clk 0:02:57.7]} 6. Be3 {[%clk 0:02:23.3]} 6... O-O {[%clk 0:02:50.3]}
7. Ng3 {[%clk 0:02:22.5]} 7... Nbc6 {[%clk 0:02:43.2]} 8. e5 {[%clk 0:02:02.2]}
8... dxc4 {[%clk 0:02:28]} 9. Bxc4 {[%clk 0:02:02.7]} 9... b6 {[%clk 0:02:17.4]}
10. Qd2 {[%clk 0:01:56.3]} 10... Bb7 {[%clk 0:02:18.1]} 11. a3 {[%clk 0:01:41]}
11... Na5 {[%clk 0:02:17]} 12. Ba2 {[%clk 0:01:23.9]} 12... Bxg2 {[%clk
0:02:17.2]} 13. Rg1 {[%clk 0:01:25]} 13... Bb7 {[%clk 0:02:14.9]} 14. O-O-O
{[%clk 0:01:23.6]} 14... Qc8 {[%clk 0:02:09.9]} 15. Nge4 {[%clk 0:01:16.3]}
15... Bxe4 {[%clk 0:02:04.1]} 16. Nxe4 {[%clk 0:01:16.3]} 16... Nb7 {[%clk
0:02:03.3]} 17. Nf6+ {[%clk 0:01:06.4]} 17... Kh8 {[%clk 0:01:58.6]} 18. Bh6
{[%clk 0:01:02.6]} 18... c5 {[%clk 0:01:48.3]} 19. Kb1 {[%clk 0:00:50.2]} 19...
cxd4 {[%clk 0:01:46.7]} 20. Rc1 {[%clk 0:00:24.1]} 20... Qd8 {[%clk 0:01:43.4]}
21. Bxg7+ {[%clk 0:00:22.9]} 21... Kxg7 {[%clk 0:01:43.7]} 22. Nh5+ {[%clk
0:00:24.1]} 22... Kh8 {[%clk 0:01:36.2]} 23. Qh6 {[%clk 0:00:24.7]} 23... Nf5
{[%clk 0:01:36.8]} 24. Qf4 {[%clk 0:00:13.4]} 24... gxh5 {[%clk 0:01:34.1]} 25.
Rg5 {[%clk 0:00:13.7]} 25... Rg8 {[%clk 0:01:32.3]} 26. Rcg1 {[%clk 0:00:14.9]}
26... Qc7 {[%clk 0:01:02.5]} 27. Rxg8+ {[%clk 0:00:09.7]} 27... Rxg8 {[%clk
0:01:02.8]} 28. Rxg8+ {[%clk 0:00:10.9]} 28... Kxg8 {[%clk 0:01:02.9]} 29. Qg5+
{[%clk 0:00:12.1]} 29... Kf8 {[%clk 0:01:01.1]} 30. Qxh5 {[%clk 0:00:08.7]}
30... Qxe5 {[%clk 0:01:00.7]} 31. Qxh7 {[%clk 0:00:05.9]} 31... d3 {[%clk
0:01:01.1]} 32. Bb3 {[%clk 0:00:02.1]} 32... d2 {[%clk 0:00:56.8]} 33. Ka2
{[%clk 0:00:03.3]} 33... Nd4 {[%clk 0:00:53.5]} 34. Qh6+ {[%clk 0:00:03.4]}
34... Ke8 {[%clk 0:00:51.6]} 35. Qxd2 {[%clk 0:00:04.9]} 35... Nxb3 {[%clk
0:00:50.3]} 36. Kxb3 {[%clk 0:00:04]} 36... Nc5+ {[%clk 0:00:47.7]} 37. Kc2
{[%clk 0:00:02.8]} 37... Qxh2 {[%clk 0:00:47.6]} 0-1

[Event "*** MasterClass Titled Tuesday Blitz"]
[Site "Chess.com"]
[Date "2017.10.03"]
[Round "6"]
[White "DrVelja"]
[Black "biostatistician"]
[Result "1-0"]
[WhiteElo "2503"]
[BlackElo "2398"]
[TimeControl "180+2"]
[EndTime "14:23:56 PDT"]
[Termination "DrVelja won by resignation"]

1. e4 {[%clk 0:03:01.9]} 1... e6 {[%clk 0:02:59.5]} 2. d4 {[%clk 0:03:03]} 2...
d5 {[%clk 0:03:01.4]} 3. Nc3 {[%clk 0:03:03.2]} 3... Nf6 {[%clk 0:03:01.7]} 4.
e5 {[%clk 0:03:04.1]} 4... Nfd7 {[%clk 0:03:02.5]} 5. f4 {[%clk 0:03:05.4]} 5...
c5 {[%clk 0:03:04.4]} 6. Nf3 {[%clk 0:03:07]} 6... Nc6 {[%clk 0:03:05.3]} 7. Be3
{[%clk 0:03:08.7]} 7... a6 {[%clk 0:03:06.7]} 8. Qd2 {[%clk 0:03:09.7]} 8... b5
{[%clk 0:03:07.7]} 9. Bd3 {[%clk 0:03:11.2]} 9... b4 {[%clk 0:03:06.4]} 10. Na4
{[%clk 0:03:11.7]} 10... c4 {[%clk 0:03:06.5]} 11. Be2 {[%clk 0:03:13.2]} 11...
a5 {[%clk 0:03:03.3]} 12. O-O {[%clk 0:03:00.7]} 12... Ba6 {[%clk 0:03:04.1]}
13. b3 {[%clk 0:01:59.7]} 13... Bb5 {[%clk 0:02:56.2]} 14. Ng5 {[%clk
0:02:00.6]} 14... g6 {[%clk 0:02:32.8]} 15. f5 {[%clk 0:01:47.5]} 15... exf5
{[%clk 0:02:19.2]} 16. e6 {[%clk 0:01:48.3]} 16... fxe6 {[%clk 0:02:19.7]} 17.
Nxe6 {[%clk 0:01:48.3]} 17... Qc8 {[%clk 0:02:16]} 18. Rxf5 {[%clk 0:01:34.6]}
18... gxf5 {[%clk 0:02:00.4]} 19. Bh5+ {[%clk 0:01:35]} 19... Ke7 {[%clk
0:02:01.4]} 20. Bg5+ {[%clk 0:01:32]} 20... Nf6 {[%clk 0:01:04.9]} 21. Re1
{[%clk 0:01:23.1]} 21... Qxe6 {[%clk 0:01:04.9]} 22. Rxe6+ {[%clk 0:01:23]}
22... Kxe6 {[%clk 0:01:06.8]} 23. Nb6 {[%clk 0:00:34.9]} 23... Rb8 {[%clk
0:00:52.9]} 24. Bxf6 {[%clk 0:00:28.3]} 24... Kxf6 {[%clk 0:00:47.2]} 25. Nxd5+
{[%clk 0:00:22.9]} 25... Ke6 {[%clk 0:00:46.9]} 26. Nf4+ {[%clk 0:00:14.5]}
26... Kd7 {[%clk 0:00:43.2]} 27. Qe3 {[%clk 0:00:14.3]} 27... Kc7 {[%clk
0:00:30.5]} 28. Qe6 {[%clk 0:00:14.2]} 28... Kb7 {[%clk 0:00:21.3]} 29. Qd7+
{[%clk 0:00:14.7]} 29... Ka6 {[%clk 0:00:20.2]} 30. Nd5 {[%clk 0:00:13.2]} 30...
Nxd4 {[%clk 0:00:17.1]} 31. Nc7+ {[%clk 0:00:10.4]} 31... Kb6 {[%clk 0:00:17.8]}
32. Nd5+ {[%clk 0:00:11.9]} 32... Ka6 {[%clk 0:00:18.7]} 33. Nc7+ {[%clk
0:00:13.5]} 33... Kb6 {[%clk 0:00:19.8]} 34. Nd5+ {[%clk 0:00:10.1]} 34... Kc5
{[%clk 0:00:20.9]} 35. Qc7+ {[%clk 0:00:08.6]} 35... Kxd5 {[%clk 0:00:22.2]} 36.
Qxb8 {[%clk 0:00:10.1]} 36... cxb3 {[%clk 0:00:18.4]} 37. axb3 {[%clk
0:00:10.7]} 37... Ne2+ {[%clk 0:00:17.8]} 38. Kh1 {[%clk 0:00:10.9]} 38... Bg7
{[%clk 0:00:17.9]} 39. Qxb5+ {[%clk 0:00:10.9]} 39... Ke4 {[%clk 0:00:17.8]} 40.
Qxe2+ {[%clk 0:00:12.2]} 1-0

[Event "*** MasterClass Titled Tuesday Blitz"]
[Site "Chess.com"]
[Date "2017.10.03"]
[Round "6"]
[White "XeresLt"]
[Black "Dhaydon19"]
[Result "0-1"]
[WhiteElo "2261"]
[BlackElo "2458"]
[TimeControl "180+2"]
[EndTime "14:24:05 PDT"]
[Termination "Dhaydon19 won by resignation"]

1. e4 {[%clk 0:03:01.9]} 1... c5 {[%clk 0:02:56.1]} 2. Nf3 {[%clk 0:03:02.9]}
2... d6 {[%clk 0:02:56.9]} 3. d4 {[%clk 0:03:04.3]} 3... cxd4 {[%clk 0:02:57.7]}
4. Nxd4 {[%clk 0:03:06.2]} 4... g6 {[%clk 0:02:58.7]} 5. Nc3 {[%clk 0:03:07.4]}
5... Bg7 {[%clk 0:02:59.8]} 6. Be3 {[%clk 0:03:08.9]} 6... Nf6 {[%clk
0:03:00.7]} 7. Bc4 {[%clk 0:03:09.7]} 7... Nc6 {[%clk 0:03:01.3]} 8. f3 {[%clk
0:03:10.9]} 8... Bd7 {[%clk 0:03:01.6]} 9. Qd2 {[%clk 0:03:11.9]} 9... Rc8
{[%clk 0:03:02.8]} 10. Bb3 {[%clk 0:03:11.9]} 10... Na5 {[%clk 0:03:03.1]} 11.
h4 {[%clk 0:03:07.7]} 11... h5 {[%clk 0:03:02.8]} 12. O-O-O {[%clk 0:03:01.3]}
12... Nc4 {[%clk 0:02:56.5]} 13. Bxc4 {[%clk 0:02:59.8]} 13... Rxc4 {[%clk
0:02:56.6]} 14. Nb3 {[%clk 0:02:56.2]} 14... a6 {[%clk 0:02:57.1]} 15. Kb1
{[%clk 0:02:47.5]} 15... Qc7 {[%clk 0:02:51.1]} 16. Bg5 {[%clk 0:02:46.6]} 16...
Be6 {[%clk 0:02:35.4]} 17. Rhe1 {[%clk 0:02:12.3]} 17... O-O {[%clk 0:02:25.8]}
18. Nd4 {[%clk 0:02:09.1]} 18... Qc8 {[%clk 0:02:25.2]} 19. Nxe6 {[%clk
0:02:08.3]} 19... Qxe6 {[%clk 0:02:24.2]} 20. Nd5 {[%clk 0:01:53.2]} 20... Rfc8
{[%clk 0:02:13.1]} 21. c3 {[%clk 0:01:44]} 21... Nxd5 {[%clk 0:02:08.8]} 22.
exd5 {[%clk 0:01:35.7]} 22... Qf5+ {[%clk 0:02:08.4]} 23. Qd3 {[%clk 0:01:30.5]}
23... Qxd3+ {[%clk 0:02:02.5]} 24. Rxd3 {[%clk 0:01:31.3]} 24... Be5 {[%clk
0:01:59.7]} 25. Bxe7 {[%clk 0:01:25.6]} 25... f6 {[%clk 0:01:59.7]} 26. Rxe5
{[%clk 0:01:20]} 26... fxe5 {[%clk 0:01:58.9]} 27. Bxd6 {[%clk 0:01:20.8]} 27...
e4 {[%clk 0:01:57.8]} 28. fxe4 {[%clk 0:01:20.4]} 28... Rxe4 {[%clk 0:01:58.3]}
29. Bg3 {[%clk 0:01:15.8]} 29... Rd8 {[%clk 0:01:54.3]} 30. Rd2 {[%clk
0:01:12.6]} 30... Rg4 {[%clk 0:01:51.8]} 31. Bc7 {[%clk 0:01:13.3]} 31... Rd7
{[%clk 0:01:52.6]} 32. d6 {[%clk 0:01:10.3]} 32... Rxh4 {[%clk 0:01:52.8]} 33.
Kc2 {[%clk 0:01:09.5]} 33... Rg4 {[%clk 0:01:52.2]} 34. b3 {[%clk 0:01:10]}
34... g5 {[%clk 0:01:50.3]} 35. c4 {[%clk 0:01:10.9]} 35... h4 {[%clk
0:01:49.7]} 36. Kc3 {[%clk 0:01:12.4]} 36... Rf4 {[%clk 0:01:49.9]} 37. c5
{[%clk 0:01:04.4]} 37... g4 {[%clk 0:01:45.8]} 38. Rd5 {[%clk 0:01:02.5]} 38...
Kg7 {[%clk 0:01:39.4]} 39. Rh5 {[%clk 0:01:01.6]} 39... g3 {[%clk 0:01:38.2]}
40. b4 {[%clk 0:00:53.6]} 40... Kg6 {[%clk 0:01:38.4]} 41. Rh8 {[%clk
0:00:52.7]} 41... Rh7 {[%clk 0:01:22.7]} 42. Rg8+ {[%clk 0:00:29.9]} 42... Rg7
{[%clk 0:01:22.9]} 43. Re8 {[%clk 0:00:16.3]} 43... Rf2 {[%clk 0:01:20.5]} 44.
a4 {[%clk 0:00:12.7]} 44... Rxg2 {[%clk 0:01:20.8]} 45. b5 {[%clk 0:00:14.3]}
45... axb5 {[%clk 0:01:20.4]} 46. axb5 {[%clk 0:00:15.3]} 46... h3 {[%clk
0:01:16.7]} 47. c6 {[%clk 0:00:16.5]} 47... bxc6 {[%clk 0:01:17]} 48. bxc6
{[%clk 0:00:18]} 48... h2 {[%clk 0:01:17.2]} 49. d7 {[%clk 0:00:19]} 49... h1=Q
{[%clk 0:01:15.4]} 50. Re6+ {[%clk 0:00:14.7]} 50... Kh5 {[%clk 0:01:10.6]} 51.
Re5+ {[%clk 0:00:12.6]} 51... Kg4 {[%clk 0:01:10.8]} 52. d8=Q {[%clk 0:00:13.2]}
52... Qc1+ {[%clk 0:01:10.3]} 53. Kb4 {[%clk 0:00:13.5]} 53... Rb2+ {[%clk
0:01:10.2]} 0-1

[Event "*** MasterClass Titled Tuesday Blitz"]
[Site "Chess.com"]
[Date "2017.10.03"]
[Round "6"]
[White "Alexander_Moskalenko"]
[Black "Angry_Serb"]
[Result "1-0"]
[WhiteElo "2629"]
[BlackElo "2394"]
[TimeControl "180+2"]
[EndTime "14:24:10 PDT"]
[Termination "Alexander_Moskalenko won on time"]

1. e4 {[%clk 0:03:01.9]} 1... e5 {[%clk 0:02:57.9]} 2. Nf3 {[%clk 0:03:01.9]}
2... Nc6 {[%clk 0:02:56.8]} 3. Bb5 {[%clk 0:03:01.9]} 3... a6 {[%clk 0:02:57.9]}
4. Ba4 {[%clk 0:02:55.8]} 4... Nf6 {[%clk 0:02:53.6]} 5. d3 {[%clk 0:02:55.7]}
5... b5 {[%clk 0:02:53.9]} 6. Bb3 {[%clk 0:02:56.3]} 6... Bc5 {[%clk 0:02:55.8]}
7. O-O {[%clk 0:02:57.1]} 7... O-O {[%clk 0:02:56.8]} 8. Nc3 {[%clk 0:02:58.6]}
8... h6 {[%clk 0:02:55.3]} 9. a3 {[%clk 0:02:58.9]} 9... d6 {[%clk 0:02:55.8]}
10. h3 {[%clk 0:02:59.8]} 10... Rb8 {[%clk 0:02:52.4]} 11. Ne2 {[%clk
0:02:54.1]} 11... Bb6 {[%clk 0:02:47.8]} 12. Ng3 {[%clk 0:02:53.2]} 12... Ne7
{[%clk 0:02:49]} 13. c3 {[%clk 0:02:52.2]} 13... Ng6 {[%clk 0:02:49.8]} 14. d4
{[%clk 0:02:53.4]} 14... c5 {[%clk 0:02:43.3]} 15. Re1 {[%clk 0:02:47.5]} 15...
Re8 {[%clk 0:01:41.9]} 16. dxe5 {[%clk 0:02:06.2]} 16... dxe5 {[%clk 0:01:28.8]}
17. Nf5 {[%clk 0:01:57.7]} 17... c4 {[%clk 0:01:27.7]} 18. Bc2 {[%clk
0:01:55.5]} 18... Qxd1 {[%clk 0:01:03.9]} 19. Rxd1 {[%clk 0:01:54.9]} 19... Bxf5
{[%clk 0:01:05.4]} 20. exf5 {[%clk 0:01:40.9]} 20... Nf4 {[%clk 0:01:07.3]} 21.
Kf1 {[%clk 0:01:25.9]} 21... Nd3 {[%clk 0:01:03]} 22. Bxd3 {[%clk 0:01:10.3]}
22... cxd3 {[%clk 0:01:04.9]} 23. Nxe5 {[%clk 0:01:11.9]} 23... Rxe5 {[%clk
0:00:57.2]} 24. Bf4 {[%clk 0:00:58.3]} 24... Rbe8 {[%clk 0:00:35.1]} 25. Bxe5
{[%clk 0:00:59.5]} 25... Rxe5 {[%clk 0:00:37]} 26. Rxd3 {[%clk 0:01:01.1]} 26...
Rxf5 {[%clk 0:00:38.5]} 27. Rf3 {[%clk 0:00:56.1]} 27... Rd5 {[%clk 0:00:31.7]}
28. Ke2 {[%clk 0:00:37.3]} 28... Ne4 {[%clk 0:00:32.8]} 29. Rd1 {[%clk
0:00:37.6]} 29... Rxd1 {[%clk 0:00:13.9]} 30. Kxd1 {[%clk 0:00:39.5]} 30...
Nxf2+ {[%clk 0:00:15.8]} 31. Ke2 {[%clk 0:00:32]} 31... Ne4 {[%clk 0:00:17]} 32.
Rd3 {[%clk 0:00:32.8]} 32... Kf8 {[%clk 0:00:16.8]} 33. Rd7 {[%clk 0:00:30.5]}
33... Nc5 {[%clk 0:00:16]} 34. Rd6 {[%clk 0:00:30.3]} 34... Na4 {[%clk
0:00:10.9]} 35. b3 {[%clk 0:00:25.6]} 35... Nxc3+ {[%clk 0:00:06.1]} 36. Kd3
{[%clk 0:00:26.2]} 36... Bc5 {[%clk 0:00:07.1]} 37. Rc6 {[%clk 0:00:24.7]} 37...
Bxa3 {[%clk 0:00:06]} 38. Kxc3 {[%clk 0:00:22.6]} 38... a5 {[%clk 0:00:06.6]}
39. Rb6 {[%clk 0:00:23.2]} 39... Bb4+ {[%clk 0:00:04.3]} 40. Kd3 {[%clk
0:00:23.4]} 1-0

[Event "*** MasterClass Titled Tuesday Blitz"]
[Site "Chess.com"]
[Date "2017.10.03"]
[Round "6"]
[White "sergiochess83"]
[Black "joppie2"]
[Result "1-0"]
[WhiteElo "2722"]
[BlackElo "2584"]
[TimeControl "180+2"]
[EndTime "14:24:22 PDT"]
[Termination "sergiochess83 won by checkmate"]

1. e4 {[%clk 0:03:01.9]} 1... e5 {[%clk 0:02:59]} 2. Nf3 {[%clk 0:03:02.6]} 2...
Nc6 {[%clk 0:03:00.6]} 3. Bc4 {[%clk 0:03:03.6]} 3... Bc5 {[%clk 0:03:00.3]} 4.
O-O {[%clk 0:03:04.5]} 4... Nf6 {[%clk 0:03:00.8]} 5. d3 {[%clk 0:03:05.7]} 5...
d6 {[%clk 0:03:01.7]} 6. c3 {[%clk 0:03:06.4]} 6... a6 {[%clk 0:03:00.3]} 7. a4
{[%clk 0:03:06.9]} 7... O-O {[%clk 0:02:59]} 8. h3 {[%clk 0:03:07.4]} 8... Be6
{[%clk 0:02:58.1]} 9. Bxe6 {[%clk 0:03:07.4]} 9... fxe6 {[%clk 0:03:00]} 10. b4
{[%clk 0:03:07.4]} 10... Ba7 {[%clk 0:03:00.6]} 11. Nbd2 {[%clk 0:03:08.8]}
11... Nh5 {[%clk 0:02:57.4]} 12. Nc4 {[%clk 0:03:06.6]} 12... Qe8 {[%clk
0:02:51.7]} 13. Ra2 {[%clk 0:02:44.7]} 13... Ne7 {[%clk 0:02:40.6]} 14. d4
{[%clk 0:02:08.3]} 14... exd4 {[%clk 0:02:31]} 15. Nxd4 {[%clk 0:02:09.4]} 15...
Nc6 {[%clk 0:01:57.8]} 16. Nxc6 {[%clk 0:01:57.1]} 16... bxc6 {[%clk 0:01:33.2]}
17. Qg4 {[%clk 0:01:40.3]} 17... Nf6 {[%clk 0:01:33.2]} 18. Qe2 {[%clk
0:01:41.2]} 18... e5 {[%clk 0:01:34.6]} 19. Na5 {[%clk 0:01:36.7]} 19... Nh5
{[%clk 0:01:32.2]} 20. Qc4+ {[%clk 0:01:23]} 20... Kh8 {[%clk 0:01:31.7]} 21.
Nxc6 {[%clk 0:01:23.7]} 21... Bb6 {[%clk 0:01:09.5]} 22. a5 {[%clk 0:01:17.2]}
22... Bc5 {[%clk 0:01:10.6]} 23. Nxe5 {[%clk 0:01:07.8]} 23... Qxe5 {[%clk
0:00:26.5]} 24. bxc5 {[%clk 0:01:08.2]} 24... dxc5 {[%clk 0:00:27.4]} 25. Be3
{[%clk 0:01:04.6]} 25... Nf4 {[%clk 0:00:27.3]} 26. Rd2 {[%clk 0:00:37]} 26...
h6 {[%clk 0:00:15]} 27. f3 {[%clk 0:00:34.8]} 27... Rf6 {[%clk 0:00:12.3]} 28.
Qxc5 {[%clk 0:00:30]} 28... Qxc5 {[%clk 0:00:10.7]} 29. Bxc5 {[%clk 0:00:30.5]}
29... Rc6 {[%clk 0:00:12.3]} 30. Bd4 {[%clk 0:00:21.2]} 30... Ne6 {[%clk
0:00:13.7]} 31. Rb1 {[%clk 0:00:19]} 31... Kg8 {[%clk 0:00:14.3]} 32. Kf2 {[%clk
0:00:18]} 32... Kf7 {[%clk 0:00:13.7]} 33. Ke3 {[%clk 0:00:17]} 33... Re8 {[%clk
0:00:13.4]} 34. Rb7 {[%clk 0:00:13.6]} 34... g5 {[%clk 0:00:14]} 35. Be5 {[%clk
0:00:06.5]} 35... Rc5 {[%clk 0:00:11]} 36. Rd5 {[%clk 0:00:07.3]} 36... Rxd5
{[%clk 0:00:11.5]} 37. exd5 {[%clk 0:00:08.4]} 37... Nf4 {[%clk 0:00:08]} 38.
Rxc7+ {[%clk 0:00:09.6]} 38... Kg6 {[%clk 0:00:09.6]} 39. Rc6+ {[%clk
0:00:06.9]} 39... Kf5 {[%clk 0:00:09.5]} 40. Kd4 {[%clk 0:00:02.7]} 40... Rxe5
{[%clk 0:00:10.3]} 41. g4# {[%clk 0:00:03]} 1-0